[Event "1st Bangalore GM-Open-A 2024"]
[Site "Bangalore"]
[Date "2024.01.19"]
[Round "2.26"]
[White "Jai Sankar Subramanian"]
[Black "Kushagra Mohan"]
[Result "1/2-1/2"]
[ECO "C55"]
[WhiteElo "2025"]
[BlackElo "2374"]
[Annotator "RC"]
[PlyCount "135"]
[EventDate "2024.01.20"]
[EventType "swiss"]
[EventCountry "IND"]
[SourceTitle "playchess.com"]
[Source "ChessBase"]
[SourceQuality "1"]
[TimeControl "5400+30"]

1. e4 {[%emt 0:00:04]} e5 {[%emt 0:00:03]} 2. Nf3 {[%emt 0:00:03]} Nc6 {[%emt 0:00:04]} 3. Bc4 {[%emt 0:00:04]} Nf6 {[%emt 0:00:03]} 4. d3 {[%emt 0:00:09]} h6 {[%emt 0:00:03]} 5. c3 {[%emt 0:00:11]} d6 {[%emt 0:00:03]} 6. h3 {[%emt 0:00:09]} g6 {[%emt 0:00:22]} 7. O-O {[%emt 0:00:47]} Bg7 {[%emt 0:00:17]} 8. Re1 {[%emt 0:00:16]} O-O {[%emt 0:00:05]} 9. d4 {[%emt 0:00:15]} exd4 {[%emt 0:04:37]} 10. Nxd4 {[%emt 0:01:23]} Nxd4 {[%emt 0:03:48]} 11. cxd4 {[%emt 0:00:31]} Nxe4 {[%emt 0:01:51]} 12. Rxe4 {[%emt 0:00:43]} d5 {[%emt 0:00:04]} 13. Bxd5 {[%emt 0:00:09]} Qxd5 {[%emt 0:00:05]} 14. Nc3 {[%emt 0:00:07]} Qd8 {[%emt 0:02:53]} 15. Bf4 {[%emt 0:01:24]} Bf5 {[%emt 0:00:15]} 16. Re2 {[%emt 0:00:02]} c6 {[%emt 0:07:37]} 17. Be5 {[%emt 0:00:28]} Qb6 {[%emt 0:00:55]} 18. Bxg7 {[%emt 0:01:01]} Kxg7 {[%emt 0:00:03]} 19. d5 {[%emt 0:03:49]} Rad8 {[%emt 0:03:49]} 20. Rd2 {[%emt 0:00:01]} c5 {[%emt 0:01:17]} 21. Qf3 {[%emt 0:02:41]} Rfe8 {[%emt 0:00:32]} 22. Na4 {[%emt 0:01:14]} Qa5 {[%emt 0:01:13]} 23. Qc3+ {[%emt 0:00:02]} Qxc3 {[%emt 0:00:05]} 24. Nxc3 {[%emt 0:00:02]} h5 {[%emt 0:05:22]} 25. a4 {[%emt 0:02:11]} Rd7 {[%emt 0:01:54]} 26. Rad1 {[%emt 0:03:28]} Red8 {[%emt 0:02:03]} 27. f3 {[%emt 0:02:03]} h4 {[%emt 0:00:31]} 28. Kf2 {[%emt 0:00:02]} b6 {[%emt 0:03:49]} 29. Re2 {[%emt 0:03:41]} a6 {[%emt 0:00:57]} 30. Red2 {[%emt 0:02:01]} Rb8 {[%emt 0:04:53]} 31. d6 {[%emt 0:01:53]} Rbd8 {[%emt 0:02:23]} 32. a5 {[%emt 0:02:34]} b5 {[%emt 0:01:04]} 33. Rd5 {[%emt 0:02:20]} c4 {[%emt 0:00:36]} 34. Ne4 {[%emt 0:02:26]} Bxe4 {[%emt 0:00:23]} 35. fxe4 {[%emt 0:00:02]} Kf6 {[%emt 0:00:07]} 36. e5+ {[%emt 0:03:42]} Ke6 {[%emt 0:00:11]} 37. Ke3 {[%emt 0:01:29]} Rc8 {[%emt 0:08:11]} 38. Ke4 {[%emt 0:01:55]} c3 {[%emt 0:00:29]} 39. bxc3 {[%emt 0:10:56]} Rxc3 {[%emt 0:00:07]} 40. R1d3 {[%emt 0:01:29]} Rc4+ {[%emt 0:02:53]} 41. R3d4 {[%emt 0:00:01]} Rxd4+ {[%emt 0:04:54]} 42. Kxd4 {[%emt 0:00:45]} f6 {[%emt 0:00:20]} 43. Kc5 {[%emt 0:01:10]} fxe5 {[%emt 0:00:46]} 44. Kc6 {[%emt 0:00:01]} b4 {[%emt 0:00:43]} 45. Rxe5+ {[%emt 0:00:26]} Kxe5 {[%emt 0:00:02]} 46. Kxd7 {[%emt 0:00:02]} b3 {[%emt 0:00:00]} 47. Kc7 {[%emt 0:00:01]} b2 {[%emt 0:00:27]} 48. d7 {[%emt 0:00:01]} b1=Q {[%emt 0:00:05]} 49. d8=Q {[%emt 0:00:03]} Qc2+ {[%emt 0:04:26]} 50. Kb6 {[%emt 0:00:27]} Qxg2 {[%emt 0:00:14]} 51. Qxh4 {[%emt 0:00:33]} g5 {[%emt 0:01:13]} 52. Qh8+ {[%emt 0:02:57]} Kf5 {[%emt 0:02:19]} 53. Qc8+ {[%emt 0:00:27]} Kf4 {[%emt 0:00:04]} 54. Qc4+ {[%emt 0:02:17]} Kg3 {[%emt 0:00:45]} 55. Qc3+ {[%emt 0:06:46]} Kh2 {[%emt 0:00:56]} 56. Kxa6 {[%emt 0:00:12]} Qa8+ {[%emt 0:00:24]} 57. Kb5 {[%emt 0:00:16]} Qd5+ {[%emt 0:00:12]} 58. Kb6 {[%emt 0:01:34]} Qd6+ {[%emt 0:00:16]} 59. Qc6 {[%emt 0:01:20]} Qb4+ {[%emt 0:01:42]} 60. Qb5 {[%emt 0:00:14]} Qd6+ {[%emt 0:00:16]} 61. Kb7 {[%emt 0:00:48]} Qe7+ {[%emt 0:00:06]} 62. Ka8 {[%emt 0:00:38]} Kxh3 {[%emt 0:01:34]} 63. a6 {[%emt 0:02:43]} g4 {[%emt 0:00:22]} 64. a7 {[%emt 0:01:01]} g3 {[%emt 0:03:37]} 65. Kb8 {[%emt 0:01:01]} g2 {[%emt 0:01:23]} 66. Qf5+ {[%emt 0:04:19]} Kg3 {[%emt 0:00:12]} 67. Qg6+ {[%emt 0:00:38]} Kh2 {[%emt 0:00:22]} 68. Qxg2+ {[%emt 0:01:02]} 1/2-1/2

[Event "1st Bangalore GM-Open-A 2024"]
[Site "Bangalore"]
[Date "2024.01.19"]
[Round "2.27"]
[White "Thejkumar, M. S."]
[Black "Fronda, Jan Jodilyn"]
[Result "1-0"]
[ECO "E04"]
[WhiteElo "2372"]
[BlackElo "2151"]
[Annotator "RC"]
[PlyCount "107"]
[EventDate "2024.01.20"]
[EventType "swiss"]
[EventCountry "IND"]
[SourceTitle "playchess.com"]
[Source "ChessBase"]
[SourceQuality "1"]
[TimeControl "5400+30"]

1. d4 {[%emt 0:00:04]} d5 {[%emt 0:01:01]} 2. c4 {[%emt 0:00:33]} e6 {[%emt 0:00:47]} 3. Nf3 {[%emt 0:00:31]} c6 {[%emt 0:00:48]} 4. Nc3 {[%emt 0:01:42]} Nf6 {[%emt 0:00:13]} 5. g3 {[%emt 0:03:33]} dxc4 {[%emt 0:10:25]} 6. Bg2 {[%emt 0:00:20]} b5 {[%emt 0:01:59]} 7. O-O {[%emt 0:03:10]} Bb7 {[%emt 0:00:16]} 8. Ne5 {[%emt 0:01:22]} Qc8 {[%emt 0:00:16]} 9. b3 {[%emt 0:13:50]} Nbd7 {[%emt 0:10:48]} 10. Nxd7 {[%emt 0:08:45]} Qxd7 {[%emt 0:07:45]} 11. bxc4 {[%emt 0:00:13]} b4 {[%emt 0:00:50]} 12. Na4 {[%emt 0:00:41]} c5 {[%emt 0:00:42]} 13. dxc5 {[%emt 0:14:54]} Bxg2 {[%emt 0:01:57]} 14. Kxg2 {[%emt 0:00:04]} Qc6+ {[%emt 0:06:38]} 15. f3 {[%emt 0:00:08]} Be7 {[%emt 0:03:32]} 16. Rb1 {[%emt 0:04:04]} Rd8 {[%emt 0:06:05]} 17. Qc2 {[%emt 0:02:47]} a5 {[%emt 0:05:03]} 18. a3 {[%emt 0:01:53]} O-O {[%emt 0:11:11]} 19. axb4 {[%emt 0:02:54]} axb4 {[%emt 0:00:07]} 20. Rxb4 {[%emt 0:00:22]} Bxc5 {[%emt 0:01:59]} 21. Nxc5 {[%emt 0:07:56]} Qxc5 {[%emt 0:00:11]} 22. Qb3 {[%emt 0:02:14]} Rc8 {[%emt 0:04:17]} 23. Rd1 {[%emt 0:01:21]} h6 {[%emt 0:01:48]} 24. Bb2 {[%emt 0:07:15]} Rfd8 {[%emt 0:09:38]} 25. Rb5 {[%emt 0:05:04]} Qc6 {[%emt 0:02:45]} 26. Rxd8+ {[%emt 0:03:56]} Rxd8 {[%emt 0:00:04]} 27. Bxf6 {[%emt 0:02:21]} gxf6 {[%emt 0:00:06]} 28. Rb8 {[%emt 0:01:24]} Rxb8 {[%emt 0:01:32]} 29. Qxb8+ {[%emt 0:00:06]} Kg7 {[%emt 0:00:06]} 30. Qb5 {[%emt 0:00:06]} Qd6 {[%emt 0:00:17]} 31. c5 {[%emt 0:01:17]} Qd5 {[%emt 0:00:43]} 32. Qb4 {[%emt 0:00:22]} Qa2 {[%emt 0:09:24]} 33. Kf2 {[%emt 0:00:29]} Qd5 {[%emt 0:01:34]} 34. Qc3 {[%emt 0:01:45]} Qc6 {[%emt 0:00:05]} 35. Qd4 {[%emt 0:00:13]} Qb5 {[%emt 0:00:12]} 36. Qc3 {[%emt 0:02:43]} Qc6 {[%emt 0:00:03]} 37. Kg2 {[%emt 0:01:25]} h5 {[%emt 0:02:15]} 38. h4 {[%emt 0:00:54]} Qb5 {[%emt 0:00:56]} 39. Kf1 {[%emt 0:01:19]} Qc6 {[%emt 0:00:10]} 40. Kf2 {[%emt 0:00:06]} Kg8 {[%emt 0:01:25]} 41. Qd4 {[%emt 0:01:02]} Kg7 {[%emt 0:00:11]} 42. g4 {[%emt 0:01:46]} hxg4 {[%emt 0:00:34]} 43. Qxg4+ {[%emt 0:00:04]} Kf8 {[%emt 0:00:07]} 44. Qd4 {[%emt 0:00:12]} Kg7 {[%emt 0:00:10]} 45. h5 {[%emt 0:00:30]} Qc7 {[%emt 0:00:56]} 46. Kg2 {[%emt 0:01:29]} Qa7 {[%emt 0:00:54]} 47. Qc4 {[%emt 0:00:31]} f5 {[%emt 0:00:39]} 48. c6 {[%emt 0:00:26]} Qc7 {[%emt 0:00:18]} 49. Qd4+ {[%emt 0:00:52]} Kh6 {[%emt 0:00:43]} 50. Qh8+ {[%emt 0:00:27]} Kg5 {[%emt 0:00:04]} 51. h6 {[%emt 0:00:06]} Qxc6 {[%emt 0:01:00]} 52. Qg7+ {[%emt 0:00:08]} Kf4 {[%emt 0:00:06]} 53. h7 {[%emt 0:00:14]} Ke3 {[%emt 0:00:24]} 54. Qe5+ {[%emt 0:00:11]} 1-0

[Event "1st Bangalore GM-Open-A 2024"]
[Site "Bangalore"]
[Date "2024.01.19"]
[Round "2.28"]
[White "Choubey Saurabh"]
[Black "Aswath, S."]
[Result "0-1"]
[ECO "D47"]
[WhiteElo "1991"]
[BlackElo "2369"]
[Annotator "RC"]
[PlyCount "110"]
[EventDate "2024.01.20"]
[EventType "swiss"]
[EventCountry "IND"]
[SourceTitle "playchess.com"]
[Source "ChessBase"]
[SourceQuality "1"]
[TimeControl "5400+30"]

1. d4 {[%emt 0:00:03]} d5 {[%emt 0:03:26]} 2. c4 {[%emt 0:00:26]} e6 {[%emt 0:00:07]} 3. Nf3 {[%emt 0:00:16]} Nf6 {[%emt 0:00:17]} 4. Nc3 {[%emt 0:00:09]} c6 {[%emt 0:00:06]} 5. e3 {[%emt 0:00:21]} Nbd7 {[%emt 0:00:07]} 6. Be2 {[%emt 0:00:10]} b6 {[%emt 0:00:23]} 7. O-O {[%emt 0:00:49]} Bb7 {[%emt 0:00:29]} 8. Bd3 {[%emt 0:03:31]} dxc4 {[%emt 0:04:34]} 9. Bxc4 {[%emt 0:00:09]} b5 {[%emt 0:00:06]} 10. Bd3 {[%emt 0:01:09]} Bd6 {[%emt 0:00:11]} 11. e4 {[%emt 0:01:45]} e5 {[%emt 0:00:13]} 12. dxe5 {[%emt 0:02:29]} Nxe5 {[%emt 0:00:07]} 13. Nxe5 {[%emt 0:00:12]} Bxe5 {[%emt 0:00:05]} 14. Be3 {[%emt 0:00:50]} O-O {[%emt 0:02:48]} 15. Qe2 {[%emt 0:04:50]} Re8 {[%emt 0:01:09]} 16. f3 {[%emt 0:05:55]} a6 {[%emt 0:05:44]} 17. Rfd1 {[%emt 0:02:04]} Qc7 {[%emt 0:03:12]} 18. g3 {[%emt 0:00:10]} c5 {[%emt 0:00:39]} 19. Qf2 {[%emt 0:02:03]} c4 {[%emt 0:10:01]} 20. Bf1 {[%emt 0:01:00]} h5 {[%emt 0:01:24]} 21. Bb6 {[%emt 0:04:04]} Qc6 {[%emt 0:00:20]} 22. Bd4 {[%emt 0:01:55]} Bc7 {[%emt 0:07:29]} 23. Bxf6 {[%emt 0:05:46]} Qxf6 {[%emt 0:00:35]} 24. Kg2 {[%emt 0:00:24]} Bb6 {[%emt 0:02:20]} 25. Qd2 {[%emt 0:02:23]} Rad8 {[%emt 0:02:45]} 26. Qf4 {[%emt 0:01:42]} Qxf4 {[%emt 0:01:57]} 27. gxf4 {[%emt 0:00:11]} Bc7 {[%emt 0:00:00]} 28. f5 {[%emt 0:04:16]} Be5 {[%emt 0:00:28]} 29. Rxd8 {[%emt 0:03:18]} Rxd8 {[%emt 0:00:09]} 30. Rd1 {[%emt 0:00:49]} Rxd1 {[%emt 0:00:32]} 31. Nxd1 {[%emt 0:00:03]} Kf8 {[%emt 0:01:42]} 32. a4 {[%emt 0:05:37]} Ke7 {[%emt 0:01:24]} 33. axb5 {[%emt 0:00:55]} axb5 {[%emt 0:00:07]} 34. b3 {[%emt 0:05:15]} Kd6 {[%emt 0:06:44]} 35. bxc4 {[%emt 0:07:21]} b4 {[%emt 0:00:16]} 36. Nf2 {[%emt 0:06:12]} b3 {[%emt 0:01:14]} 37. Nd3 {[%emt 0:05:19]} b2 {[%emt 0:00:29]} 38. c5+ {[%emt 0:01:28]} Kc7 {[%emt 0:00:10]} 39. Nxb2 {[%emt 0:00:14]} Bxb2 {[%emt 0:00:05]} 40. Bc4 {[%emt 0:00:34]} f6 {[%emt 0:01:33]} 41. Kg3 {[%emt 0:02:30]} Bc6 {[%emt 0:06:35]} 42. Bf7 {[%emt 0:00:32]} Bd4 {[%emt 0:01:44]} 43. Kh4 {[%emt 0:00:57]} Kd8 {[%emt 0:04:43]} 44. Kxh5 {[%emt 0:01:08]} Ke7 {[%emt 0:00:40]} 45. Kg6 {[%emt 0:03:49]} Kf8 {[%emt 0:00:29]} 46. h4 {[%emt 0:06:22]} Bxc5 {[%emt 0:01:16]} 47. h5 {[%emt 0:05:10]} Be3 {[%emt 0:08:40]} 48. Bc4 {[%emt 0:04:54]} Be8+ {[%emt 0:00:34]} 49. Kh7 {[%emt 0:00:09]} Bxh5 {[%emt 0:00:04]} 50. Be2 {[%emt 0:00:08]} Bh6 {[%emt 0:02:32]} 51. e5 {[%emt 0:01:31]} fxe5 {[%emt 0:00:34]} 52. f6 {[%emt 0:00:14]} Kf7 {[%emt 0:01:35]} 53. fxg7 {[%emt 0:00:59]} Bxg7 {[%emt 0:00:09]} 54. Bc4+ {[%emt 0:00:09]} Kf6 {[%emt 0:00:06]} 55. Bd5 {[%emt 0:00:11]} Bg6+ {[%emt 0:00:51]} 0-1

[Event "1st Bangalore GM-Open-A 2024"]
[Site "Bangalore"]
[Date "2024.01.19"]
[Round "2.29"]
[White "Kumar, Gaurav"]
[Black "Dushyant Sharma"]
[Result "0-1"]
[ECO "D02"]
[WhiteElo "1953"]
[BlackElo "2357"]
[Annotator "RC"]
[PlyCount "94"]
[EventDate "2024.01.20"]
[EventType "swiss"]
[EventCountry "IND"]
[SourceTitle "playchess.com"]
[Source "ChessBase"]
[SourceQuality "1"]
[TimeControl "5400+30"]

1. Nf3 {[%emt 0:00:08]} d5 {[%emt 0:00:27]} 2. g3 {[%emt 0:00:14]} Nc6 {[%emt 0:01:13]} 3. d4 {[%emt 0:05:32]} Bf5 {[%emt 0:01:47]} 4. Bg2 {[%emt 0:00:25]} e6 {[%emt 0:00:24]} 5. c3 {[%emt 0:06:42]} Nf6 {[%emt 0:01:21]} 6. O-O {[%emt 0:07:53]} Be7 {[%emt 0:01:47]} 7. Nbd2 {[%emt 0:04:04]} h6 {[%emt 0:02:10]} 8. b3 {[%emt 0:03:52]} O-O {[%emt 0:00:42]} 9. Bb2 {[%emt 0:00:22]} a5 {[%emt 0:02:25]} 10. c4 {[%emt 0:10:35]} a4 {[%emt 0:06:11]} 11. Ne5 {[%emt 0:01:56]} Nb8 {[%emt 0:09:47]} 12. c5 {[%emt 0:08:00]} c6 {[%emt 0:06:27]} 13. b4 {[%emt 0:02:54]} Nbd7 {[%emt 0:04:29]} 14. a3 {[%emt 0:00:38]} Qc7 {[%emt 0:09:19]} 15. Re1 {[%emt 0:11:10]} Nxe5 {[%emt 0:11:49]} 16. dxe5 {[%emt 0:00:07]} Nd7 {[%emt 0:00:31]} 17. e4 {[%emt 0:00:32]} Bg6 {[%emt 0:00:37]} 18. f4 {[%emt 0:05:00]} b6 {[%emt 0:02:29]} 19. f5 {[%emt 0:03:12]} exf5 {[%emt 0:03:54]} 20. exd5 {[%emt 0:00:13]} cxd5 {[%emt 0:00:13]} 21. Bxd5 {[%emt 0:01:32]} Rad8 {[%emt 0:00:43]} 22. c6 {[%emt 0:04:13]} Nc5 {[%emt 0:09:19]} 23. Qf3 {[%emt 0:00:43]} Bh5 {[%emt 0:00:30]} 24. Qxh5 {[%emt 0:04:26]} Rxd5 {[%emt 0:00:05]} 25. Nf3 {[%emt 0:00:39]} Nd3 {[%emt 0:01:54]} 26. Red1 {[%emt 0:03:46]} Qxc6 {[%emt 0:13:15]} 27. Nd4 {[%emt 0:01:28]} Qc4 {[%emt 0:06:26]} 28. Nxf5 {[%emt 0:00:27]} Bg5 {[%emt 0:00:29]} 29. Qe2 {[%emt 0:00:19]} Nxb2 {[%emt 0:02:58]} 30. Qxb2 {[%emt 0:00:21]} Rxd1+ {[%emt 0:01:05]} 31. Rxd1 {[%emt 0:00:16]} Qe4 {[%emt 0:09:24]} 32. Qf2 {[%emt 0:09:07]} Qxe5 {[%emt 0:00:00]} 33. Re1 {[%emt 0:00:25]} Qc3 {[%emt 0:00:00]} 34. h4 {[%emt 0:03:04]} Bf6 {[%emt 0:00:00]} 35. Re3 {[%emt 0:00:22]} Qc1+ {[%emt 0:00:00]} 36. Kh2 {[%emt 0:00:53]} g6 {[%emt 0:00:00]} 37. Nxh6+ {[%emt 0:00:51]} Kg7 {[%emt 0:00:00]} 38. Rf3 {[%emt 0:00:25]} Rd8 {[%emt 0:00:00]} 39. Qf1 {[%emt 0:02:41]} Rd1 {[%emt 0:00:00]} 40. Qg2 {[%emt 0:00:24]} Qxh6 {[%emt 0:00:00]} 41. Rxf6 {[%emt 0:00:20]} Qc1 {[%emt 0:00:00]} 42. Rf2 {[%emt 0:00:41]} Qxa3 {[%emt 0:00:00]} 43. Qb7 {[%emt 0:00:16]} Qb3 {[%emt 0:00:00]} 44. Qxb6 {[%emt 0:00:23]} a3 {[%emt 0:00:00]} 45. Qf6+ {[%emt 0:00:24]} Kg8 {[%emt 0:00:00]} 46. h5 {[%emt 0:00:32]} Qd5 {[%emt 0:00:00]} 47. Rf3 {[%emt 0:00:57]} Qxh5+ {[%emt 0:00:00]} 0-1

[Event "1st Bangalore GM-Open-A 2024"]
[Site "Bangalore"]
[Date "2024.01.19"]
[Round "2.30"]
[White "Moksh Amit Doshi"]
[Black "Matta, Vinay Kumar"]
[Result "1-0"]
[ECO "E61"]
[WhiteElo "2355"]
[BlackElo "2132"]
[Annotator "RC"]
[PlyCount "73"]
[EventDate "2024.01.20"]
[EventType "swiss"]
[EventCountry "IND"]
[SourceTitle "playchess.com"]
[Source "ChessBase"]
[SourceQuality "1"]
[TimeControl "5400+30"]

1. d4 {[%emt 0:00:03]} Nf6 {[%emt 0:13:33]} 2. c4 {[%emt 0:00:35]} g6 {[%emt 0:00:07]} 3. g3 {[%emt 0:00:12]} Bg7 {[%emt 0:00:08]} 4. Bg2 {[%emt 0:00:09]} O-O {[%emt 0:00:09]} 5. Nc3 {[%emt 0:00:05]} a6 {[%emt 0:01:23]} 6. h3 {[%emt 0:01:49]} Nc6 {[%emt 0:01:12]} 7. Nf3 {[%emt 0:03:41]} d6 {[%emt 0:03:30]} 8. e4 {[%emt 0:00:10]} e5 {[%emt 0:01:59]} 9. Be3 {[%emt 0:00:25]} exd4 {[%emt 0:00:24]} 10. Nxd4 {[%emt 0:00:17]} Ne5 {[%emt 0:01:50]} 11. b3 {[%emt 0:03:07]} Re8 {[%emt 0:03:35]} 12. O-O {[%emt 0:01:04]} c6 {[%emt 0:01:51]} 13. Qc2 {[%emt 0:03:32]} Rb8 {[%emt 0:10:29]} 14. Rad1 {[%emt 0:02:09]} Qe7 {[%emt 0:16:12]} 15. f4 {[%emt 0:07:37]} Ned7 {[%emt 0:00:00]} 16. Rfe1 {[%emt 0:00:50]} c5 {[%emt 0:00:00]} 17. Nf3 {[%emt 0:06:50]} b5 {[%emt 0:17:14]} 18. Bf2 {[%emt 0:09:47]} Bb7 {[%emt 0:06:29]} 19. Nd5 {[%emt 0:22:17]} Bxd5 {[%emt 0:05:54]} 20. cxd5 {[%emt 0:00:41]} Nb6 {[%emt 0:04:09]} 21. b4 {[%emt 0:05:09]} cxb4 {[%emt 0:04:03]} 22. Nd4 {[%emt 0:00:47]} Na4 {[%emt 0:02:01]} 23. Nc6 {[%emt 0:01:23]} Qc7 {[%emt 0:00:25]} 24. e5 {[%emt 0:02:05]} Nh5 {[%emt 0:01:28]} 25. Qb3 {[%emt 0:02:04]} Nc3 {[%emt 0:01:01]} 26. Rd2 {[%emt 0:02:30]} a5 {[%emt 0:00:14]} 27. a3 {[%emt 0:01:40]} Rbc8 {[%emt 0:01:17]} 28. axb4 {[%emt 0:00:14]} axb4 {[%emt 0:00:14]} 29. Qxb4 {[%emt 0:00:16]} dxe5 {[%emt 0:00:32]} 30. d6 {[%emt 0:03:00]} Qd7 {[%emt 0:00:11]} 31. Qxc3 {[%emt 0:00:07]} e4 {[%emt 0:00:25]} 32. Ne7+ {[%emt 0:01:21]} Kh8 {[%emt 0:03:01]} 33. Qe3 {[%emt 0:04:40]} Rc4 {[%emt 0:00:34]} 34. Bf1 {[%emt 0:02:18]} Ra4 {[%emt 0:00:46]} 35. Qc5 {[%emt 0:00:20]} Rb8 {[%emt 0:00:50]} 36. Qc7 {[%emt 0:00:33]} Qd8 {[%emt 0:00:44]} 37. Nc6 {[%emt 0:00:29]} 1-0

[Event "1st Bangalore GM-Open-A 2024"]
[Site "Bangalore"]
[Date "2024.01.19"]
[Round "2.31"]
[White "Laxman, R.R."]
[Black "Kiran, Manisha Mohanty"]
[Result "1-0"]
[ECO "A37"]
[WhiteElo "2338"]
[BlackElo "2058"]
[Annotator "RC"]
[PlyCount "87"]
[EventDate "2024.01.20"]
[EventType "swiss"]
[EventCountry "IND"]
[SourceTitle "playchess.com"]
[Source "ChessBase"]
[SourceQuality "1"]
[TimeControl "5400+30"]

1. Nf3 {[%emt 0:00:20]} c5 {[%emt 0:02:50]} 2. c4 {[%emt 0:01:58]} Nc6 {[%emt 0:00:05]} 3. g3 {[%emt 0:01:16]} g6 {[%emt 0:00:09]} 4. Bg2 {[%emt 0:00:48]} Bg7 {[%emt 0:00:08]} 5. O-O {[%emt 0:00:11]} e5 {[%emt 0:03:29]} 6. Nc3 {[%emt 0:00:16]} Nge7 {[%emt 0:00:08]} 7. e3 {[%emt 0:00:55]} O-O {[%emt 0:00:07]} 8. d3 {[%emt 0:00:16]} d6 {[%emt 0:00:29]} 9. Rb1 {[%emt 0:00:49]} h6 {[%emt 0:07:32]} 10. a3 {[%emt 0:00:19]} a5 {[%emt 0:00:13]} 11. Ne1 {[%emt 0:03:54]} Be6 {[%emt 0:03:01]} 12. Nd5 {[%emt 0:00:59]} f5 {[%emt 0:03:17]} 13. Nc2 {[%emt 0:00:12]} Bf7 {[%emt 0:06:37]} 14. b4 {[%emt 0:03:29]} cxb4 {[%emt 0:10:43]} 15. axb4 {[%emt 0:00:38]} Nxd5 {[%emt 0:07:22]} 16. cxd5 {[%emt 0:00:05]} Ne7 {[%emt 0:00:24]} 17. bxa5 {[%emt 0:03:03]} Qc7 {[%emt 0:02:58]} 18. e4 {[%emt 0:04:03]} Rxa5 {[%emt 0:01:36]} 19. Bd2 {[%emt 0:02:04]} Raa8 {[%emt 0:08:26]} 20. Ne3 {[%emt 0:01:05]} f4 {[%emt 0:02:35]} 21. Nc4 {[%emt 0:00:07]} g5 {[%emt 0:00:23]} 22. Qb3 {[%emt 0:02:03]} Rab8 {[%emt 0:04:21]} 23. Ba5 {[%emt 0:03:18]} Qd7 {[%emt 0:00:27]} 24. Qb5 {[%emt 0:00:29]} Be8 {[%emt 0:03:59]} 25. Qxd7 {[%emt 0:01:46]} Bxd7 {[%emt 0:00:05]} 26. Bc7 {[%emt 0:00:11]} f3 {[%emt 0:02:14]} 27. Bh1 {[%emt 0:03:12]} g4 {[%emt 0:02:45]} 28. Bxd6 {[%emt 0:00:08]} Ng6 {[%emt 0:00:04]} 29. Rb6 {[%emt 0:03:28]} Kh7 {[%emt 0:06:08]} 30. Bxf8 {[%emt 0:00:56]} Nxf8 {[%emt 0:00:08]} 31. Rfb1 {[%emt 0:00:23]} Bc8 {[%emt 0:01:14]} 32. Nd6 {[%emt 0:00:24]} Nd7 {[%emt 0:00:25]} 33. Nxc8 {[%emt 0:00:20]} Rxc8 {[%emt 0:02:31]} 34. Rxb7 {[%emt 0:00:02]} Nf6 {[%emt 0:00:11]} 35. h3 {[%emt 0:00:13]} h5 {[%emt 0:00:06]} 36. Re7 {[%emt 0:00:32]} Kg6 {[%emt 0:03:25]} 37. Rxe5 {[%emt 0:02:02]} Rc3 {[%emt 0:00:26]} 38. Re6 {[%emt 0:00:26]} Kh7 {[%emt 0:00:56]} 39. hxg4 {[%emt 0:00:24]} hxg4 {[%emt 0:00:14]} 40. Rd1 {[%emt 0:00:56]} Kg8 {[%emt 0:03:05]} 41. Rc6 {[%emt 0:00:13]} Rb3 {[%emt 0:00:11]} 42. d6 {[%emt 0:00:10]} Rb8 {[%emt 0:01:43]} 43. e5 {[%emt 0:00:24]} Nh7 {[%emt 0:00:07]} 44. d7 {[%emt 0:00:10]} 1-0

[Event "1st Bangalore GM-Open-A 2024"]
[Site "Bangalore"]
[Date "2024.01.19"]
[Round "2.32"]
[White "Ram Aravind L N"]
[Black "Pattnayak Nilsu"]
[Result "1/2-1/2"]
[ECO "A18"]
[WhiteElo "2332"]
[BlackElo "1987"]
[Annotator "RC"]
[PlyCount "124"]
[EventDate "2024.01.20"]
[EventType "swiss"]
[EventCountry "IND"]
[SourceTitle "playchess.com"]
[Source "ChessBase"]
[SourceQuality "1"]
[TimeControl "5400+30"]

1. c4 {[%emt 0:00:32]} Nf6 {[%emt 0:00:21]} 2. Nc3 {[%emt 0:00:12]} e6 {[%emt 0:00:05]} 3. e4 {[%emt 0:00:44]} d5 {[%emt 0:00:06]} 4. e5 {[%emt 0:00:18]} d4 {[%emt 0:00:06]} 5. exf6 {[%emt 0:00:21]} dxc3 {[%emt 0:00:06]} 6. bxc3 {[%emt 0:00:04]} gxf6 {[%emt 0:00:14]} 7. d4 {[%emt 0:02:26]} e5 {[%emt 0:06:50]} 8. Nf3 {[%emt 0:15:20]} Nc6 {[%emt 0:04:30]} 9. Bd3 {[%emt 0:10:11]} Bg4 {[%emt 0:07:00]} 10. h3 {[%emt 0:03:13]} Bh5 {[%emt 0:01:25]} 11. Be3 {[%emt 0:10:22]} exd4 {[%emt 0:14:16]} 12. cxd4 {[%emt 0:00:50]} Bb4+ {[%emt 0:00:05]} 13. Kf1 {[%emt 0:00:27]} Bc3 {[%emt 0:03:29]} 14. g4 {[%emt 0:07:49]} Bxa1 {[%emt 0:01:47]} 15. Qxa1 {[%emt 0:00:02]} Bg6 {[%emt 0:00:11]} 16. Bxg6 {[%emt 0:00:05]} fxg6 {[%emt 0:01:23]} 17. d5 {[%emt 0:00:13]} Nb8 {[%emt 0:02:08]} 18. Ng5 {[%emt 0:03:11]} Nd7 {[%emt 0:06:44]} 19. Ne6 {[%emt 0:00:46]} Qe7 {[%emt 0:00:12]} 20. Kg2 {[%emt 0:06:01]} Kf7 {[%emt 0:02:55]} 21. h4 {[%emt 0:05:21]} c6 {[%emt 0:05:02]} 22. Bf4 {[%emt 0:06:22]} cxd5 {[%emt 0:08:14]} 23. Re1 {[%emt 0:00:44]} Qb4 {[%emt 0:10:40]} 24. g5 {[%emt 0:00:01]} Rhe8 {[%emt 0:04:16]} 25. cxd5 {[%emt 0:00:03]} Qc4 {[%emt 0:01:09]} 26. Rd1 {[%emt 0:02:11]} Rxe6 {[%emt 0:04:10]} 27. dxe6+ {[%emt 0:00:06]} Qxe6 {[%emt 0:00:06]} 28. Rd6 {[%emt 0:02:24]} Qg4+ {[%emt 0:00:06]} 29. Bg3 {[%emt 0:00:18]} fxg5 {[%emt 0:01:32]} 30. hxg5 {[%emt 0:00:28]} Re8 {[%emt 0:04:41]} 31. Qb1 {[%emt 0:04:48]} Nc5 {[%emt 0:04:49]} 32. Qc1 {[%emt 0:05:37]} b6 {[%emt 0:01:39]} 33. Qd2 {[%emt 0:04:21]} Qe4+ {[%emt 0:02:52]} 34. Kh2 {[%emt 0:00:01]} Re6 {[%emt 0:00:57]} 35. Rd4 {[%emt 0:00:24]} Qc6 {[%emt 0:01:56]} 36. Qf4+ {[%emt 0:00:42]} Kg7 {[%emt 0:01:32]} 37. Rd8 {[%emt 0:00:29]} Re8 {[%emt 0:00:52]} 38. Qd4+ {[%emt 0:00:01]} Kf7 {[%emt 0:00:29]} 39. Qf4+ {[%emt 0:00:12]} Kg7 {[%emt 0:00:18]} 40. Rxe8 {[%emt 0:03:01]} Qxe8 {[%emt 0:00:04]} 41. Qf6+ {[%emt 0:00:02]} Kg8 {[%emt 0:00:06]} 42. Be5 {[%emt 0:00:19]} Qd7 {[%emt 0:00:11]} 43. Bb2 {[%emt 0:00:51]} Ne6 {[%emt 0:01:45]} 44. Qh8+ {[%emt 0:00:21]} Kf7 {[%emt 0:00:04]} 45. Qxh7+ {[%emt 0:01:34]} Ke8 {[%emt 0:00:05]} 46. Qxg6+ {[%emt 0:03:36]} Qf7 {[%emt 0:00:03]} 47. Qxf7+ {[%emt 0:00:17]} Kxf7 {[%emt 0:00:05]} 48. Bc1 {[%emt 0:00:04]} Kg6 {[%emt 0:00:36]} 49. f4 {[%emt 0:00:04]} Kf5 {[%emt 0:00:54]} 50. Kg3 {[%emt 0:00:08]} b5 {[%emt 0:01:03]} 51. Bd2 {[%emt 0:00:12]} a5 {[%emt 0:00:57]} 52. Kh4 {[%emt 0:03:54]} b4 {[%emt 0:00:12]} 53. Kh5 {[%emt 0:00:12]} Nf8 {[%emt 0:00:05]} 54. Kh6 {[%emt 0:01:02]} Ng6 {[%emt 0:00:16]} 55. Kh5 {[%emt 0:00:30]} Nf8 {[%emt 0:00:05]} 56. Kh6 {[%emt 0:01:01]} Ng6 {[%emt 0:00:05]} 57. Kh7 {[%emt 0:00:07]} a4 {[%emt 0:02:09]} 58. Bxb4 {[%emt 0:00:05]} Nxf4 {[%emt 0:00:04]} 59. Kh6 {[%emt 0:00:14]} Ng6 {[%emt 0:00:22]} 60. Bd6 {[%emt 0:00:25]} Nh8 {[%emt 0:00:18]} 61. Be7 {[%emt 0:01:23]} Nf7+ {[%emt 0:00:06]} 62. Kh5 {[%emt 0:00:06]} Nxg5 {[%emt 0:00:02]} 1/2-1/2